[Event "FIDE Womens Grand Swiss 2021"]
[Site "Riga"]
[Date "2021.11.01"]
[Round "6.3"]
[White "Harika, Dronavalli"]
[Black "Batsiashvili, Nino"]
[Result "1/2-1/2"]
[ECO "C79"]
[WhiteElo "2511"]
[BlackElo "2484"]
[Annotator "ChessBase"]
[PlyCount "156"]
[EventDate "2021.10.27"]
[EventType "swiss"]
[EventCountry "LAT"]
[Tiebreak "Cut1 Buchholz+Sonneborn-Berger (Swiss)"]
[SourceTitle "playchess.com"]
[Source "ChessBase"]
[SourceQuality "1"]
[TimeControl "40/6000+30:20/3000+30:900+30"]

1. e4 {[%emt 0:10:05]} e5 {[%emt 0:10:03]} 2. Nf3 {[%emt 0:00:08]} Nc6 {
[%emt 0:00:02]} 3. Bb5 {[%emt 0:00:08]} a6 {[%emt 0:00:05]} 4. Ba4 {[%emt 0:00:
05]} Nf6 {[%emt 0:00:08]} 5. d3 {[%emt 0:00:29]} d6 {[%emt 0:03:16]} 6. c3 {
[%emt 0:03:30]} Bd7 {[%emt 0:01:27]} 7. O-O {[%emt 0:03:33]} g6 {[%emt 0:00:07]
} 8. Re1 {[%emt 0:02:51]} Bg7 {[%emt 0:00:13]} 9. h3 {[%emt 0:00:48]} O-O {
[%emt 0:00:26]} 10. Bc2 {[%emt 0:06:19]} h6 {[%emt 0:14:53]} 11. d4 {[%emt 0:
05:06]} Nh5 {[%emt 0:03:28]} 12. Be3 {[%emt 0:01:16]} Qe7 {[%emt 0:04:59]} 13.
Nbd2 {[%emt 0:04:16]} Nd8 {[%emt 0:02:22]} 14. Bd3 {[%emt 0:12:34]} Ne6 {
[%emt 0:01:36]} 15. Bf1 {[%emt 0:00:34]} Rad8 {[%emt 0:03:38]} 16. a4 {[%emt 0:
02:53]} Be8 {[%emt 0:09:56]} 17. Qb3 {[%emt 0:06:05]} exd4 {[%emt 0:07:21]} 18.
cxd4 {[%emt 0:11:41]} c6 {[%emt 0:00:09]} 19. Qa3 {[%emt 0:05:36]} Nf6 {
[%emt 0:13:47]} 20. Rac1 {[%emt 0:06:26]} b5 {[%emt 0:04:21]} 21. axb5 {
[%emt 0:05:07]} axb5 {[%emt 0:00:01]} 22. e5 {[%emt 0:05:11]} Nd5 {[%emt 0:00:
03]} 23. Ne4 {[%emt 0:00:08]} b4 {[%emt 0:05:23]} 24. Qb3 {[%emt 0:00:14]} dxe5
{[%emt 0:00:15]} 25. dxe5 {[%emt 0:00:09]} Nxe3 {[%emt 0:00:24]} 26. Qxe3 {
[%emt 0:00:19]} Nc7 {[%emt 0:03:04]} 27. Qc5 {[%emt 0:04:28]} Qe6 {[%emt 0:05:
07]} 28. Qxb4 {[%emt 0:01:17]} Nd5 {[%emt 0:00:03]} 29. Qb7 {[%emt 0:04:40]}
Nf4 {[%emt 0:02:16]} 30. Qb4 {[%emt 0:02:37]} g5 {[%emt 0:04:04]} 31. Nc5 {
[%emt 0:00:47]} Qc8 {[%emt 0:03:26]} 32. Qe4 {[%emt 0:00:39]} Bd7 {[%emt 0:01:
00]} 33. Nxd7 {[%emt 0:00:43]} Qxd7 {[%emt 0:00:01]} 34. Rxc6 {[%emt 0:02:02]}
Rb8 {[%emt 0:00:31]} 35. Rd6 {[%emt 0:01:50]} Qb7 {[%emt 0:00:13]} 36. Qxb7 {
[%emt 0:00:57]} Rxb7 {[%emt 0:00:01]} 37. g3 {[%emt 0:00:46]} Ne6 {[%emt 0:00:
42]} 38. Rb1 {[%emt 0:00:15]} Rfb8 {[%emt 0:01:20]} 39. Bc4 {[%emt 0:00:17]}
Nc5 {[%emt 0:02:06]} 40. Rc6 {[%emt 0:01:03]} Bf8 {[%emt 0:02:14]} 41. e6 {
[%emt 0:33:02]} Nxe6 {[%emt 0:24:02]} 42. Bxe6 {[%emt 0:03:48]} fxe6 {[%emt 0:
00:01]} 43. Nd4 {[%emt 0:00:49]} Rxb2 {[%emt 0:00:30]} 44. Rxb2 {[%emt 0:00:30]
} Rxb2 {[%emt 0:00:30]} 45. Nxe6 {[%emt 0:00:30]} Bg7 {[%emt 0:00:30]} 46. Kg2
{[%emt 0:00:30]} Be5 {[%emt 0:00:30]} 47. Kf3 {[%emt 0:00:30]} Kf7 {[%emt 0:00:
30]} 48. Nd8+ {[%emt 0:00:30]} Kg7 {[%emt 0:00:30]} 49. Ke4 {[%emt 0:00:30]}
Bf6 {[%emt 0:00:30]} 50. Ne6+ {[%emt 0:00:30]} Kf7 {[%emt 0:00:30]} 51. Kf3 {
[%emt 0:00:30]} Be5 {[%emt 0:00:30]} 52. Nd8+ {[%emt 0:00:30]} Kg7 {[%emt 0:00:
30]} 53. Rc4 {[%emt 0:08:03]} Kf6 54. Nc6 {[%emt 0:00:30]} Rb3+ 55. Kg2 {
[%emt 0:00:55]} Bc3 {[%emt 0:02:23]} 56. h4 {[%emt 0:02:07]} Ke6 {[%emt 0:16:
52]} 57. Nd4+ {[%emt 0:01:58]} Bxd4 {[%emt 0:02:42]} 58. Rxd4 {[%emt 0:00:01]}
Kf5 {[%emt 0:02:00]} 59. Kh3 {[%emt 0:02:39]} Rb2 {[%emt 0:00:54]} 60. Rd8 {
[%emt 0:00:58]} Kg6 {[%emt 0:02:51]} 61. Rd6+ {[%emt 0:15:05]} Kg7 {[%emt 0:16:
39]} 62. f3 {[%emt 0:00:18]} Rb3 {[%emt 0:00:31]} 63. Kg4 {[%emt 0:00:00]} Rb5
{[%emt 0:00:37]} 64. Ra6 {[%emt 0:00:34]} Rc5 {[%emt 0:00:07]} 65. Kh5 {
[%emt 0:00:28]} Rc3 66. Kg4 {[%emt 0:00:08]} Rc5 {[%emt 0:01:53]} 67. Ra8 {
[%emt 0:00:21]} Rb5 {[%emt 0:00:14]} 68. Rc8 {[%emt 0:00:14]} Ra5 {[%emt 0:00:
07]} 69. Re8 {[%emt 0:00:18]} Rb5 {[%emt 0:00:19]} 70. Re6 {[%emt 0:00:30]} Ra5
{[%emt 0:00:30]} 71. Rb6 {[%emt 0:00:30]} Rc5 {[%emt 0:00:30]} 72. Rb3 {
[%emt 0:00:30]} Kg6 {[%emt 0:00:30]} 73. Rb6+ {[%emt 0:00:30]} Kg7 {[%emt 0:00:
30]} 74. Re6 {[%emt 0:00:25]} Ra5 75. Kh3 {[%emt 0:00:30]} Ra3 {[%emt 0:00:16]}
76. Kg2 {[%emt 0:00:30]} Ra2+ {[%emt 0:00:30]} 77. Kh3 {[%emt 0:00:30]} Ra3 {
[%emt 0:00:30]} 78. Kg4 {[%emt 0:00:00]} Ra5 {[%emt 0:00:00]} 1/2-1/2

[Event "FIDE Womens Grand Swiss 2021"]
[Site "Riga"]
[Date "2021.11.01"]
[Round "6.4"]
[White "Pogonina, Natalija"]
[Black "Badelka, Olga"]
[Result "1-0"]
[ECO "A17"]
[WhiteElo "2467"]
[BlackElo "2438"]
[Annotator "ChessBase"]
[PlyCount "71"]
[EventDate "2021.10.27"]
[EventType "swiss"]
[EventCountry "LAT"]
[Tiebreak "Cut1 Buchholz+Sonneborn-Berger (Swiss)"]
[SourceTitle "playchess.com"]
[Source "ChessBase"]
[SourceQuality "1"]
[TimeControl "40/6000+30:20/3000+30:900+30"]

1. c4 {[%emt 0:10:04]} e6 {[%emt 0:10:12]} 2. Nf3 {[%emt 0:01:16]} d5 {[%emt 0:
00:12]} 3. e3 {[%emt 0:00:46]} Nf6 {[%emt 0:00:12]} 4. Nc3 {[%emt 0:00:18]} Bd6
{[%emt 0:00:11]} 5. b3 {[%emt 0:01:50]} O-O {[%emt 0:00:12]} 6. Bb2 {[%emt 0:
01:27]} Re8 {[%emt 0:00:18]} 7. d4 {[%emt 0:07:59]} b6 {[%emt 0:00:34]} 8. cxd5
{[%emt 0:01:10]} exd5 {[%emt 0:00:11]} 9. Rc1 {[%emt 0:03:58]} a6 {[%emt 0:01:
24]} 10. Be2 {[%emt 0:10:16]} Bb7 {[%emt 0:01:46]} 11. O-O {[%emt 0:00:23]}
Nbd7 {[%emt 0:00:35]} 12. Re1 {[%emt 0:00:16]} Qe7 {[%emt 0:07:52]} 13. Bf1 {
[%emt 0:00:37]} Rac8 {[%emt 0:02:37]} 14. g3 {[%emt 0:04:29]} h5 {[%emt 0:14:
22]} 15. Bg2 {[%emt 0:06:32]} Ne4 {[%emt 0:06:56]} 16. Ne2 {[%emt 0:08:42]}
Ndf6 {[%emt 0:04:57]} 17. Nf4 {[%emt 0:04:57]} Ng4 {[%emt 0:07:11]} 18. Rc2 {
[%emt 0:02:47]} g6 {[%emt 0:00:20]} 19. Nd3 {[%emt 0:06:43]} c5 {[%emt 0:08:28]
} 20. Nfe5 {[%emt 0:04:15]} Bxe5 {[%emt 0:07:48]} 21. Nxe5 {[%emt 0:01:46]}
Nxe5 {[%emt 0:00:58]} 22. dxe5 {[%emt 0:00:10]} Rcd8 {[%emt 0:06:44]} 23. h4 {
[%emt 0:05:00]} f6 {[%emt 0:02:52]} 24. exf6 {[%emt 0:06:28]} Nxf6 {[%emt 0:00:
04]} 25. b4 {[%emt 0:01:26]} d4 {[%emt 0:05:52]} 26. Qd3 {[%emt 0:01:52]} Kh7 {
[%emt 0:03:36]} 27. e4 {[%emt 0:03:12]} Ng4 {[%emt 0:02:13]} 28. bxc5 {[%emt 0:
01:21]} bxc5 {[%emt 0:00:04]} 29. Ba3 {[%emt 0:03:05]} Rc8 {[%emt 0:02:02]} 30.
Qb3 {[%emt 0:01:33]} Rc7 {[%emt 0:07:45]} 31. Rxc5 {[%emt 0:04:22]} Rxc5 {
[%emt 0:00:06]} 32. Bxc5 {[%emt 0:00:04]} Qxc5 {[%emt 0:00:03]} 33. Qf7+ {
[%emt 0:00:31]} Kh6 {[%emt 0:00:03]} 34. Qxe8 {[%emt 0:00:07]} Nf6 {[%emt 0:02:
57]} 35. Qh8+ {[%emt 0:03:27]} Nh7 {[%emt 0:00:05]} 36. Rd1 {[%emt 0:00:12]}
1-0

[Event "FIDE Womens Grand Swiss 2021"]
[Site "Riga"]
[Date "2021.11.01"]
[Round "6.6"]
[White "Kosteniuk, Alexandra"]
[Black "Vantika Agrawal"]
[Result "1-0"]
[ECO "B51"]
[WhiteElo "2518"]
[BlackElo "2322"]
[Annotator "ChessBase"]
[PlyCount "103"]
[EventDate "2021.10.27"]
[EventType "swiss"]
[EventCountry "LAT"]
[Tiebreak "Cut1 Buchholz+Sonneborn-Berger (Swiss)"]
[SourceTitle "playchess.com"]
[Source "ChessBase"]
[SourceQuality "1"]
[TimeControl "40/6000+30:20/3000+30:900+30"]

1. e4 {[%emt 0:10:06]} c5 {[%emt 0:10:13]} 2. Nf3 {[%emt 0:00:08]} d6 {[%emt 0:
00:07]} 3. Bb5+ {[%emt 0:00:12]} Nd7 {[%emt 0:00:14]} 4. Ba4 {[%emt 0:00:14]}
Ngf6 {[%emt 0:00:38]} 5. O-O {[%emt 0:00:18]} e6 {[%emt 0:00:04]} 6. Re1 {
[%emt 0:00:22]} a6 {[%emt 0:00:21]} 7. c4 {[%emt 0:00:08]} Be7 {[%emt 0:00:14]}
8. d4 {[%emt 0:00:39]} cxd4 {[%emt 0:00:14]} 9. Nxd4 {[%emt 0:00:04]} O-O {
[%emt 0:00:18]} 10. Nc3 {[%emt 0:00:06]} Qc7 {[%emt 0:07:13]} 11. Qe2 {[%emt 0:
01:21]} Ne5 {[%emt 0:03:56]} 12. Bb3 {[%emt 0:00:39]} Ng6 {[%emt 0:06:49]} 13.
Kh1 {[%emt 0:00:45]} e5 {[%emt 0:19:48]} 14. Nf5 {[%emt 0:06:14]} Be6 {[%emt 0:
06:06]} 15. Bg5 {[%emt 0:05:02]} h6 {[%emt 0:02:41]} 16. Be3 {[%emt 0:02:46]}
Qd7 {[%emt 0:07:00]} 17. g4 {[%emt 0:05:06]} b5 {[%emt 0:14:26]} 18. f3 {
[%emt 0:01:03]} bxc4 {[%emt 0:03:06]} 19. Bxc4 {[%emt 0:00:05]} Qc6 {[%emt 0:
05:38]} 20. Bxe6 {[%emt 0:01:01]} fxe6 {[%emt 0:00:05]} 21. Nxe7+ {[%emt 0:00:
04]} Nxe7 {[%emt 0:00:05]} 22. g5 {[%emt 0:00:07]} hxg5 {[%emt 0:00:58]} 23.
Bxg5 {[%emt 0:00:25]} Kf7 {[%emt 0:10:24]} 24. Rg1 {[%emt 0:04:37]} Rh8 {
[%emt 0:00:26]} 25. Rg2 {[%emt 0:02:35]} Ng6 {[%emt 0:01:06]} 26. Rag1 {
[%emt 0:04:21]} Nh5 {[%emt 0:01:25]} 27. Qd2 {[%emt 0:00:45]} Rac8 {[%emt 0:06:
04]} 28. Rg4 {[%emt 0:13:37]} Rh7 {[%emt 0:01:08]} 29. Qg2 {[%emt 0:02:28]}
Rch8 {[%emt 0:02:35]} 30. Qf2 {[%emt 0:13:08]} Qb7 {[%emt 0:01:11]} 31. Ne2 {
[%emt 0:02:32]} Rc8 {[%emt 0:00:42]} 32. Bd2 {[%emt 0:12:01]} Ne7 {[%emt 0:00:
35]} 33. Bc3 {[%emt 0:00:17]} Nf6 {[%emt 0:00:27]} 34. Rg5 {[%emt 0:00:24]}
Rch8 {[%emt 0:00:23]} 35. R1g2 {[%emt 0:00:08]} Nh5 {[%emt 0:00:45]} 36. Kg1 {
[%emt 0:05:33]} a5 {[%emt 0:00:30]} 37. f4 {[%emt 0:01:09]} Qxe4 {[%emt 0:00:
31]} 38. fxe5+ {[%emt 0:00:04]} Ke8 {[%emt 0:00:30]} 39. exd6 {[%emt 0:03:19]}
Nd5 {[%emt 0:00:30]} 40. Bd2 {[%emt 0:05:03]} Qb1+ {[%emt 0:00:30]} 41. Nc1 {
[%emt 0:57:16]} Qc2 {[%emt 0:34:49]} 42. Re5 {[%emt 0:00:00]} Nhf6 {[%emt 0:07:
08]} 43. Rxe6+ {[%emt 0:00:00]} Kd7 {[%emt 0:04:52]} 44. Nb3 {[%emt 0:00:00]}
Rxh2 {[%emt 0:04:32]} 45. Qa7+ {[%emt 0:00:00]} Kxe6 {[%emt 0:00:59]} 46. Nd4+
{[%emt 0:00:00]} Ke5 {[%emt 0:00:31]} 47. Nxc2 {[%emt 0:00:00]} Rh1+ {[%emt 0:
00:39]} 48. Kf2 {[%emt 0:00:00]} Ne4+ {[%emt 0:00:30]} 49. Ke2 {[%emt 0:00:00]}
Kxd6 {[%emt 0:00:31]} 50. Nd4 {[%emt 0:00:00]} Re8 {[%emt 0:00:28]} 51. Qa6+ {
[%emt 0:00:00]} Ke5 {[%emt 0:00:19]} 52. Nf3+ {[%emt 0:00:00]} 1-0

[Event "FIDE Womens Grand Swiss 2021"]
[Site "Riga"]
[Date "2021.11.01"]
[Round "6.9"]
[White "Girya, Olga"]
[Black "Kashlinskaya, Alina"]
[Result "0-1"]
[ECO "E11"]
[WhiteElo "2410"]
[BlackElo "2493"]
[Annotator "ChessBase"]
[PlyCount "86"]
[EventDate "2021.10.27"]
[EventType "swiss"]
[EventCountry "LAT"]
[Tiebreak "Cut1 Buchholz+Sonneborn-Berger (Swiss)"]
[SourceTitle "playchess.com"]
[Source "ChessBase"]
[SourceQuality "1"]
[TimeControl "40/6000+30:20/3000+30:900+30"]

1. d4 {[%emt 0:10:04]} Nf6 {[%emt 0:10:09]} 2. Nf3 {[%emt 0:00:09]} e6 {
[%emt 0:00:17]} 3. c4 {[%emt 0:00:05]} Bb4+ {[%emt 0:00:10]} 4. Bd2 {[%emt 0:
00:06]} a5 {[%emt 0:00:15]} 5. g3 {[%emt 0:03:24]} d5 {[%emt 0:00:25]} 6. Bg2 {
[%emt 0:00:16]} O-O {[%emt 0:00:21]} 7. Qc2 {[%emt 0:09:15]} c5 {[%emt 0:00:23]
} 8. O-O {[%emt 0:05:35]} cxd4 {[%emt 0:02:28]} 9. Nxd4 {[%emt 0:03:00]} e5 {
[%emt 0:01:24]} 10. Nb5 {[%emt 0:00:29]} d4 {[%emt 0:04:01]} 11. Bxb4 {[%emt 0:
18:40]} axb4 {[%emt 0:00:57]} 12. Nd2 {[%emt 0:00:05]} Nc6 {[%emt 0:01:52]} 13.
c5 {[%emt 0:10:49]} Qe7 {[%emt 0:02:50]} 14. Nd6 {[%emt 0:05:06]} Be6 {[%emt 0:
02:42]} 15. N2c4 {[%emt 0:01:41]} e4 {[%emt 0:11:00]} 16. b3 {[%emt 0:11:20]}
Kh8 {[%emt 0:26:30]} 17. Nxe4 {[%emt 0:04:31]} Nxe4 {[%emt 0:02:16]} 18. Qxe4 {
[%emt 0:01:35]} Qxc5 {[%emt 0:02:07]} 19. Rfc1 {[%emt 0:00:11]} Rfd8 {[%emt 0:
04:16]} 20. Qf4 {[%emt 0:02:30]} Kg8 {[%emt 0:00:58]} 21. Nb2 {[%emt 0:01:16]}
Qe7 {[%emt 0:00:42]} 22. Nd3 {[%emt 0:00:34]} Bd5 {[%emt 0:03:45]} 23. Qd2 {
[%emt 0:06:42]} h5 {[%emt 0:02:20]} 24. Rc5 {[%emt 0:02:13]} Bxg2 {[%emt 0:05:
28]} 25. Kxg2 {[%emt 0:00:01]} Rd5 {[%emt 0:00:13]} 26. Rxd5 {[%emt 0:04:16]}
Qe4+ {[%emt 0:00:04]} 27. Kg1 {[%emt 0:00:18]} Qxd5 {[%emt 0:00:06]} 28. Rc1 {
[%emt 0:00:23]} h4 {[%emt 0:01:48]} 29. Rc5 {[%emt 0:04:17]} Qe6 {[%emt 0:01:
04]} 30. Rh5 {[%emt 0:03:42]} h3 {[%emt 0:00:38]} 31. Nf4 {[%emt 0:02:24]} Qxb3
{[%emt 0:01:00]} 32. Nxh3 {[%emt 0:00:48]} Qb1+ {[%emt 0:06:04]} 33. Kg2 {
[%emt 0:00:04]} Qe4+ {[%emt 0:00:10]} 34. f3 {[%emt 0:00:39]} Qe3 {[%emt 0:00:
01]} 35. Qxe3 {[%emt 0:00:45]} dxe3 {[%emt 0:00:06]} 36. Rb5 {[%emt 0:00:21]}
Rxa2 {[%emt 0:01:51]} 37. Nf4 {[%emt 0:00:02]} Rb2 {[%emt 0:03:10]} 38. h4 {
[%emt 0:00:54]} Nd4 {[%emt 0:01:30]} 39. Rxb7 {[%emt 0:00:08]} Nxe2 {[%emt 0:
00:10]} 40. Rb8+ {[%emt 0:01:11]} Kh7 {[%emt 0:00:02]} 41. Nxe2 {[%emt 0:24:00]
} Rxe2+ {[%emt 0:21:58]} 42. Kg1 {[%emt 0:03:02]} Re1+ {[%emt 0:01:10]} 43. Kg2
{[%emt 0:00:02]} Rc1 {[%emt 0:00:28]} 0-1

[Event "FIDE Womens Grand Swiss 2021"]
[Site "Riga"]
[Date "2021.11.01"]
[Round "6.10"]
[White "Javakhishvili, Lela"]
[Black "Gunina, Valentina"]
[Result "1-0"]
[ECO "D10"]
[WhiteElo "2446"]
[BlackElo "2462"]
[Annotator "ChessBase"]
[PlyCount "85"]
[EventDate "2021.10.27"]
[EventType "swiss"]
[EventCountry "LAT"]
[Tiebreak "Cut1 Buchholz+Sonneborn-Berger (Swiss)"]
[SourceTitle "playchess.com"]
[Source "ChessBase"]
[SourceQuality "1"]
[TimeControl "40/6000+30:20/3000+30:900+30"]

1. d4 {[%emt 0:10:05]} d5 {[%emt 0:10:07]} 2. c4 {[%emt 0:00:10]} c6 {[%emt 0:
00:07]} 3. Nc3 {[%emt 0:00:12]} Nf6 {[%emt 0:00:05]} 4. e3 {[%emt 0:00:07]} Bf5
{[%emt 0:00:07]} 5. cxd5 {[%emt 0:00:41]} cxd5 {[%emt 0:00:05]} 6. Qb3 {
[%emt 0:00:05]} Nc6 {[%emt 0:00:16]} 7. Qxb7 {[%emt 0:00:10]} Bd7 {[%emt 0:00:
07]} 8. Qb3 {[%emt 0:00:06]} Rb8 {[%emt 0:00:10]} 9. Qd1 {[%emt 0:00:07]} e5 {
[%emt 0:00:06]} 10. dxe5 {[%emt 0:00:11]} Nxe5 {[%emt 0:00:05]} 11. Nge2 {
[%emt 0:00:23]} Bc5 {[%emt 0:01:02]} 12. Nf4 {[%emt 0:00:14]} Bc6 {[%emt 0:02:
14]} 13. Be2 {[%emt 0:00:15]} O-O {[%emt 0:01:11]} 14. O-O {[%emt 0:00:16]} Qd7
{[%emt 0:00:50]} 15. Nd3 {[%emt 0:07:08]} Bd6 {[%emt 0:01:30]} 16. Nf4 {
[%emt 0:04:21]} Rfd8 {[%emt 0:04:49]} 17. a4 {[%emt 0:00:49]} Nc4 {[%emt 0:07:
57]} 18. Ncxd5 {[%emt 0:28:22]} Nxd5 {[%emt 0:02:52]} 19. Bxc4 {[%emt 0:00:29]}
Bxf4 {[%emt 0:01:05]} 20. exf4 {[%emt 0:01:21]} Qb7 {[%emt 0:04:16]} 21. Qg4 {
[%emt 0:03:39]} Nf6 {[%emt 0:07:48]} 22. Qh3 {[%emt 0:01:34]} Rd6 {[%emt 0:07:
32]} 23. b3 {[%emt 0:06:56]} Rbd8 {[%emt 0:17:13]} 24. Re1 {[%emt 0:07:54]} h5
{[%emt 0:17:19]} 25. Be3 {[%emt 0:09:09]} Ng4 {[%emt 0:02:41]} 26. Bc5 {
[%emt 0:01:11]} Rf6 {[%emt 0:08:39]} 27. Qxh5 {[%emt 0:05:30]} Nh6 {[%emt 0:05:
41]} 28. Re7 {[%emt 0:09:24]} Qa8 {[%emt 0:00:01]} 29. Rxa7 {[%emt 0:01:44]}
Qb8 {[%emt 0:01:18]} 30. Qe5 {[%emt 0:03:19]} Qc8 {[%emt 0:00:01]} 31. Rc7 {
[%emt 0:01:36]} Qg4 {[%emt 0:00:25]} 32. f3 {[%emt 0:01:12]} Bxf3 {[%emt 0:00:
21]} 33. Qg5 {[%emt 0:00:07]} Rxf4 {[%emt 0:07:33]} 34. Qxd8+ {[%emt 0:01:33]}
Kh7 {[%emt 0:00:01]} 35. Qd2 {[%emt 0:01:14]} Bxg2 {[%emt 0:01:37]} 36. Qxg2 {
[%emt 0:00:29]} Qh5 {[%emt 0:00:17]} 37. Bd6 {[%emt 0:01:48]} Rg4 {[%emt 0:00:
41]} 38. Bg3 {[%emt 0:00:11]} Qg5 {[%emt 0:00:30]} 39. Re1 {[%emt 0:01:02]} f5
{[%emt 0:00:04]} 40. Ree7 {[%emt 0:01:33]} Qf6 {[%emt 0:00:04]} 41. Be2 {
[%emt 0:25:02]} Rg6 {[%emt 0:23:55]} 42. Qd5 {[%emt 0:02:58]} Qb6+ {[%emt 0:02:
37]} 43. Kg2 {[%emt 0:01:43]} 1-0

[Event "FIDE Womens Grand Swiss 2021"]
[Site "Riga"]
[Date "2021.11.01"]
[Round "6.11"]
[White "Vaishali R"]
[Black "Assaubayeva, Bibisara"]
[Result "1/2-1/2"]
[ECO "B23"]
[WhiteElo "2419"]
[BlackElo "2400"]
[Annotator "NA"]
[PlyCount "64"]
[EventDate "2021.10.27"]
[EventType "swiss"]
[EventCountry "LAT"]
[Tiebreak "Cut1 Buchholz+Sonneborn-Berger (Swiss)"]
[SourceTitle "playchess.com"]
[Source "ChessBase"]
[SourceQuality "1"]
[TimeControl "40/6000+30:20/3000+30:900+30"]

1. e4 {[%emt 0:10:24]} c5 {[%emt 0:10:08]} 2. Nc3 {[%emt 0:00:07]} d6 {[%emt 0:
00:05]} 3. f4 {[%emt 0:00:04]} g6 {[%emt 0:00:40]} 4. Nf3 {[%emt 0:00:05]} Bg7
{[%emt 0:00:08]} 5. Bb5+ {[%emt 0:00:13]} Bd7 {[%emt 0:00:06]} 6. Bc4 {[%emt 0:
00:08]} Nc6 {[%emt 0:01:09]} 7. d3 {[%emt 0:00:09]} Na5 {[%emt 0:03:47]} 8. Bd2
{[%emt 0:00:09]} e6 {[%emt 0:03:36]} 9. Qe2 {[%emt 0:00:32]} Ne7 {[%emt 0:01:
47]} 10. O-O-O {[%emt 0:01:49]} a6 {[%emt 0:01:57]} 11. f5 {[%emt 0:01:16]} b5
{[%emt 0:09:18]} 12. f6 {[%emt 0:01:18]} Bxf6 {[%emt 0:01:59]} 13. e5 {[%emt 0:
00:08]} Bg7 {[%emt 0:02:21]} 14. Ne4 {[%emt 0:01:39]} O-O {[%emt 0:03:53]} 15.
Bg5 {[%emt 0:01:55]} dxe5 {[%emt 0:11:24]} 16. Nf6+ {[%emt 0:08:51]} Kh8 {
[%emt 0:01:12]} 17. Nxe5 {[%emt 0:05:32]} Be8 {[%emt 0:04:58]} 18. Qf3 {
[%emt 0:50:09]} Nf5 {[%emt 0:13:56]} 19. Nxh7 {[%emt 0:01:17]} Kxh7 {[%emt 0:
00:11]} 20. Bxd8 {[%emt 0:00:06]} Rxd8 $18 {[%emt 0:00:06]} 21. Qh3+ {[%emt 0:
03:00]} Nh6 {[%emt 0:03:07]} 22. Nxf7 {[%emt 0:03:09]} Bxf7 {[%emt 0:04:24]}
23. Bxe6 {[%emt 0:00:03]} Nc6 {[%emt 0:00:28]} 24. Rhf1 {[%emt 0:02:33]} Bxe6 {
[%emt 0:00:40]} 25. Qxe6 {[%emt 0:00:02]} Nd4 {[%emt 0:00:22]} 26. Qxa6 {
[%emt 0:01:53]} Ra8 {[%emt 0:03:07]} 27. Qb7 {[%emt 0:01:58]} Rfb8 {[%emt 0:01:
50]} 28. Qc7 {[%emt 0:06:09]} Rc8 {[%emt 0:01:07]} 29. Qd7 {[%emt 0:01:35]} Rd8
{[%emt 0:00:29]} 30. Qc7 {[%emt 0:06:38]} Rdc8 {[%emt 0:03:08]} 31. Qd7 {
[%emt 0:00:02]} Rd8 {[%emt 0:00:13]} 32. Qc7 {[%emt 0:01:24]} Rdc8 {[%emt 0:00:
31]} 1/2-1/2

[Event "FIDE Womens Grand Swiss 2021"]
[Site "Riga"]
[Date "2021.11.01"]
[Round "6.12"]
[White "Saduakassova, Dinara"]
[Black "Socko, Monika"]
[Result "1/2-1/2"]
[ECO "B43"]
[WhiteElo "2491"]
[BlackElo "2397"]
[Annotator "RC"]
[PlyCount "93"]
[EventDate "2021.10.27"]
[EventType "swiss"]
[EventCountry "LAT"]
[Tiebreak "Cut1 Buchholz+Sonneborn-Berger (Swiss)"]
[SourceTitle "playchess.com"]
[Source "ChessBase"]
[SourceQuality "1"]
[TimeControl "40/6000+30:20/3000+30:900+30"]

1. d4 {[%emt 0:10:28]} e6 {[%emt 0:10:06]} 2. Nf3 {[%emt 0:00:24]} c5 {[%emt 0:
04:17]} 3. Nc3 {[%emt 0:03:32]} cxd4 {[%emt 0:02:55]} 4. Nxd4 {[%emt 0:00:20]}
a6 {[%emt 0:01:20]} 5. e4 {[%emt 0:01:32]} Qc7 {[%emt 0:00:27]} 6. Be2 {
[%emt 0:06:06]} Nf6 {[%emt 0:00:44]} 7. O-O {[%emt 0:01:43]} Bb4 {[%emt 0:02:
58]} 8. Qd3 {[%emt 0:04:50]} Nc6 {[%emt 0:03:57]} 9. Nxc6 {[%emt 0:03:25]} bxc6
{[%emt 0:13:12]} 10. f4 {[%emt 0:00:52]} d5 {[%emt 0:03:18]} 11. e5 {[%emt 0:
04:33]} Nd7 {[%emt 0:06:32]} 12. Nd1 {[%emt 0:02:06]} O-O {[%emt 0:06:11]} 13.
Nf2 {[%emt 0:19:33]} a5 {[%emt 0:06:11]} 14. Qh3 {[%emt 0:05:44]} f5 {[%emt 0:
02:17]} 15. Be3 {[%emt 0:06:51]} Be7 {[%emt 0:02:31]} 16. g4 {[%emt 0:03:28]}
Nc5 {[%emt 0:03:05]} 17. Bxc5 {[%emt 0:02:58]} Bxc5 {[%emt 0:00:02]} 18. Kh1 {
[%emt 0:00:47]} Rb8 {[%emt 0:13:25]} 19. b3 {[%emt 0:02:39]} Bxf2 {[%emt 0:02:
49]} 20. Rxf2 {[%emt 0:00:06]} c5 {[%emt 0:00:04]} 21. gxf5 {[%emt 0:04:22]}
exf5 {[%emt 0:00:39]} 22. Rg1 {[%emt 0:00:44]} Rb6 {[%emt 0:00:42]} 23. Rg5 {
[%emt 0:04:26]} d4 {[%emt 0:04:41]} 24. Bf3 {[%emt 0:03:18]} g6 {[%emt 0:01:22]
} 25. Bd5+ {[%emt 0:02:03]} Be6 {[%emt 0:01:38]} 26. Qf3 {[%emt 0:01:49]} Bxd5
{[%emt 0:01:32]} 27. Qxd5+ {[%emt 0:00:05]} Kg7 {[%emt 0:00:02]} 28. Rfg2 {
[%emt 0:01:57]} Qc6 {[%emt 0:02:14]} 29. Qxc6 {[%emt 0:00:40]} Rxc6 {[%emt 0:
00:01]} 30. h4 {[%emt 0:00:12]} a4 {[%emt 0:02:03]} 31. h5 {[%emt 0:02:17]}
axb3 {[%emt 0:00:45]} 32. axb3 {[%emt 0:00:10]} Ra6 {[%emt 0:00:37]} 33. Kg1 {
[%emt 0:01:38]} Kf7 {[%emt 0:00:24]} 34. Kf2 {[%emt 0:01:07]} Rc8 {[%emt 0:02:
45]} 35. R5g3 {[%emt 0:07:52]} c4 {[%emt 0:00:17]} 36. bxc4 {[%emt 0:00:32]}
Rxc4 {[%emt 0:00:25]} 37. Ke1 {[%emt 0:00:21]} d3 {[%emt 0:06:29]} 38. Rxd3 {
[%emt 0:00:06]} Rxf4 {[%emt 0:00:58]} 39. Rd7+ {[%emt 0:01:02]} Ke6 {[%emt 0:
00:01]} 40. Rxh7 {[%emt 0:00:47]} Ra1+ {[%emt 0:00:05]} 41. Kd2 {[%emt 0:50:43]
} gxh5 {[%emt 0:50:05]} 42. Re2 {[%emt 0:02:20]} Re4 {[%emt 0:03:02]} 43. Rxe4
{[%emt 0:00:54]} fxe4 {[%emt 0:00:09]} 44. Rxh5 {[%emt 0:00:03]} Ra3 {[%emt 0:
00:30]} 45. c3 {[%emt 0:01:01]} e3+ {[%emt 0:00:16]} 46. Kxe3 {[%emt 0:00:00]}
Rxc3+ {[%emt 0:00:00]} 47. Kd4 {[%emt 0:00:01]} 1/2-1/2